bitfinex-derivatives/quotes_BTCF0:USTF0_20250320
["timestamp","ask_amount","ask_price","bid_price","bid_amount"]
[1742501290648,0.35816199,84246.0,84245.0,0.06867797]
[1742501290952,0.71896199,84246.0,84245.0,0.06867797]
[1742501294649,0.8534453,84246.0,84245.0,0.06867797]
[1742501300162,0.8534453,84246.0,84245.0,0.07067797]
[1742501301659,0.8534453,84246.0,84245.0,0.03757797]
[1742501304066,0.8534053,84246.0,84245.0,0.03757797]
[1742501304963,1.00965625,84246.0,84245.0,0.03757797]
[1742501308754,0.8534053,84246.0,84245.0,0.03757797]
[1742501312871,0.4926053,84246.0,84245.0,0.03757797]
[1742501313063,0.8534053,84246.0,84245.0,0.03757797]
[1742501322272,0.118771,84236.0,84235.0,0.12789346]
[1742501322571,0.118771,84236.0,84235.0,0.0325]
[1742501322878,0.182171,84236.0,84235.0,0.1512724]
[1742501323678,0.214771,84236.0,84235.0,0.1840724]
[1742501323876,0.215771,84236.0,84235.0,0.1860724]
[1742501324379,0.216771,84236.0,84235.0,0.1880724]
[1742501326570,0.216771,84236.0,84235.0,0.19688131]
[1742501327476,0.27451609,84236.0,84235.0,0.19688131]
[1742501334473,0.17851609,84236.0,84235.0,0.19688131]
[1742501334674,0.1748582,84247.0,84246.0,0.1187569]
[1742501334895,0.4163026,84247.0,84246.0,0.1187569]
[1742501335081,0.3008226,84247.0,84246.0,0.1187569]
[1742501336588,0.3018226,84247.0,84246.0,0.1187569]
[1742501337676,0.43520895,84247.0,84246.0,0.1187569]
[1742501343490,0.1781453,84242.0,84241.0,0.1187629]
[1742501343691,0.5389453,84242.0,84241.0,0.1187629]
[1742501344384,0.6040453,84242.0,84241.0,0.1187629]
[1742501344690,0.6050453,84242.0,84241.0,0.1187629]
[1742501345977,0.6060453,84242.0,84241.0,0.1197629]
[1742501347491,0.6060453,84242.0,84241.0,0.1504629]
[1742501347694,0.6060453,84242.0,84241.0,0.0317]
[1742501347894,0.6060453,84242.0,84241.0,0.001]
[1742501348094,0.73943165,84242.0,84241.0,0.001]
[1742501348284,0.1187823,84228.0,84227.0,0.17834807]
[1742501349583,0.1197823,84228.0,84227.0,0.17934807]
[1742501349980,0.1506823,84228.0,84227.0,0.29812587]
[1742501350291,0.1516823,84228.0,84227.0,0.29812587]
[1742501350486,0.1838823,84228.0,84227.0,0.29812587]
[1742501350702,0.1838823,84228.0,84227.0,0.32942587]
[1742501352487,0.1838823,84228.0,84227.0,0.36092587]
[1742501352686,0.24163338,84228.0,84227.0,0.36092587]
[1742501370104,0.24163338,84228.0,84227.0,0.24214727]
[1742501377216,0.45508643,84228.0,84227.0,0.24214727]
[1742501381734,0.3784275,84228.0,84227.0,0.24214727]
[1742501396545,0.24163338,84228.0,84227.0,0.24214727]
[1742501408954,0.37782923,84228.0,84227.0,0.24214727]
[1742501435590,0.38773525,84228.0,84227.0,0.24214727]
[1742501437892,0.38673525,84228.0,84227.0,0.24114727]
[1742501438187,0.38773525,84228.0,84227.0,0.24114727]
[1742501438586,0.37782923,84228.0,84227.0,0.24114727]
[1742501468821,0.25904693,84228.0,84227.0,0.24114727]
[1742501469418,0.37782923,84228.0,84227.0,0.24114727]
[1742501469932,0.25904693,84228.0,84227.0,0.24114727]
[1742501470421,0.001,84228.0,84227.0,0.35634727]
[1742501470620,0.2487273,84232.0,84231.0,0.1187781]
[1742501471123,0.2487273,84232.0,84231.0,0.2227781]
[1742501472027,0.00017809,84236.0,84235.0,0.1187724]
[1742501472323,0.00017809,84236.0,84235.0,0.5947724]
[1742501472526,0.00017809,84236.0,84235.0,0.6638724]
[1742501473316,0.21366747,84238.0,84237.0,0.1187696]
[1742501473718,0.21366747,84238.0,84237.0,0.1848696]
[1742501474928,0.21366747,84238.0,84237.0,0.1858696]
[1742501475230,0.21466747,84238.0,84237.0,0.1878696]
[1742501476217,0.001,84238.0,84237.0,0.1878696]
[1742501476523,0.001,84238.0,84237.0,0.3030696]
[1742501477120,0.0336,84238.0,84237.0,0.3030696]
[1742501478723,0.21384556,84246.0,84245.0,0.1187583]
[1742501479032,0.3608,84259.0,84253.0,0.0593735]
[1742501479225,0.0988,84258.0,84257.0,0.1187414]
[1742501479734,0.0988,84258.0,84257.0,0.1506414]
[1742501479933,0.0988,84258.0,84257.0,0.1854414]
[1742501481222,0.0998,84258.0,84257.0,0.1854414]
[1742501481830,0.0998,84258.0,84251.0,0.0593747]
[1742501482132,0.1187513,84250.0,84249.0,0.1187527]
[1742501482623,0.1840513,84250.0,84249.0,0.1187527]
[1742501483231,0.19380014,84250.0,84249.0,0.1197527]
[1742501484234,0.1840513,84250.0,84249.0,0.1197527]
[1742501485030,0.1840513,84250.0,84249.0,0.1217527]
[1742501485236,0.2180513,84250.0,84249.0,0.1217527]
[1742501486340,0.22779882,84250.0,84249.0,0.1217527]
[1742501491441,0.22779882,84250.0,84249.0,0.1563527]
[1742501491844,0.22779882,84250.0,84249.0,0.1217527]
[1742501493946,0.22784047,84250.0,84249.0,0.1217527]
[1742501494347,0.22784047,84250.0,84249.0,0.003]
[1742501494547,0.22784047,84250.0,84249.0,0.1217527]
[1742501494840,0.23758088,84250.0,84249.0,0.1217527]
[1742501495643,0.05162958,84250.0,84249.0,0.1217527]
[1742501495841,0.032,84256.0,84255.0,0.1187442]
[1742501496556,0.032,84256.0,84255.0,0.1860442]
[1742501496940,0.032,84256.0,84255.0,0.1870442]
[1742501498048,0.1507428,84256.0,84255.0,0.1870442]
[1742501499249,0.0996,84256.0,84255.0,0.1870442]
[1742501501057,0.0649,84256.0,84255.0,0.1870442]
[1742501512165,0.0649,84256.0,84255.0,0.3021242]
[1742501513660,0.1187412,84258.0,84257.0,0.1187414]
[1742501513964,0.1781071,84260.0,84259.0,0.1187386]
[1742501514568,0.1781071,84260.0,84259.0,0.1862386]
[1742501514767,0.2443071,84260.0,84259.0,0.1862386]
[1742501515165,0.2453071,84260.0,84259.0,0.1862386]
[1742501516771,0.2463071,84260.0,84259.0,0.1862386]
[1742501517272,0.45968624,84260.0,84259.0,0.1862386]
[1742501520272,0.002,84260.0,84259.0,0.1862386]
[1742501520467,0.0345,84268.0,84265.0,0.1187301]
[1742501520667,0.0327,84271.0,84265.0,0.2338101]
[1742501520871,0.0345,84267.0,84265.0,0.3014101]
[1742501521775,0.00317809,84266.0,84265.0,0.3014101]
[1742501523076,0.0318,84274.0,84273.0,0.1187189]
[1742501523290,0.0318,84274.0,84273.0,0.2337989]
[1742501523573,0.0318,84274.0,84273.0,0.2977989]
[1742501524077,0.0318,84274.0,84273.0,0.30676626]
[1742501524280,0.0358,84274.0,84273.0,0.30676626]
[1742501524577,0.0408,84274.0,84273.0,0.30676626]
[1742501526676,0.0408,84274.0,84273.0,0.3183947]
[1742501527664,0.009,84274.0,84273.0,0.3183947]
[1742501527968,0.004,84274.0,84273.0,0.3183947]
[1742501528175,0.007,84274.0,84273.0,0.3183947]
[1742501528967,0.0668,84289.0,84281.0,0.1187076]
[1742501529175,0.3608,84290.0,84281.0,0.5945476]
[1742501529373,0.1034,84295.0,84294.0,0.1186893]
[1742501530269,0.61080399,84296.0,84295.0,0.1186879]
[1742501530482,0.24864399,84296.0,84295.0,0.1186879]
[1742501530773,0.0347,84298.0,84297.0,0.1186851]
[1742501530974,0.35420658,84303.0,84302.0,0.118678]
[1742501531172,0.35420658,84303.0,84302.0,0.594518]
[1742501531371,0.36418531,84303.0,84302.0,0.594518]
[1742501532069,0.36418452,84303.0,84302.0,0.594518]
[1742501532873,0.24864399,84306.0,84305.0,0.1186738]
[1742501533074,0.0344,84315.0,84311.0,0.1186654]
[1742501533280,0.0344,84315.0,84311.0,0.2337054]
[1742501534379,0.28422288,84312.0,84311.0,0.2337054]
[1742501534785,0.001,84312.0,84311.0,0.2337054]
[1742501539572,0.01740546,84312.0,84311.0,0.2337054]
[1742501539776,0.08460557,84312.0,84311.0,0.2337054]
[1742501541991,0.08460557,84312.0,84311.0,0.2336654]
[1742501542285,0.08460557,84312.0,84311.0,0.1186654]
[1742501542485,0.08460557,84312.0,84311.0,0.2336654]
[1742501543594,0.08460557,84312.0,84311.0,0.2678654]
[1742501544879,0.0948733,84312.0,84311.0,0.2678654]
[1742501545983,0.09490652,84312.0,84311.0,0.2678654]
[1742501547682,0.09490652,84312.0,84311.0,0.3012654]
[1742501551293,0.07847174,84312.0,84311.0,0.3012654]
[1742501551991,0.07747174,84312.0,84311.0,0.3012654]
[1742501552395,0.07747174,84312.0,84311.0,0.1862654]
[1742501552587,0.07747174,84312.0,84311.0,0.3012254]
[1742501553187,0.07744941,84312.0,84311.0,0.3012254]
[1742501555489,0.04314941,84312.0,84311.0,0.3012254]
[1742501555690,0.04314941,84312.0,84311.0,0.3332254]
[1742501556301,0.04314941,84312.0,84311.0,0.3012254]
[1742501558101,0.0430779,84312.0,84311.0,0.3012254]
[1742501560098,0.0430779,84312.0,84311.0,0.3011854]
[1742501560497,0.0430779,84312.0,84311.0,0.1862654]
[1742501560697,0.0430779,84312.0,84311.0,0.3011854]
[1742501564404,0.0430779,84312.0,84311.0,0.58628739]
[1742501565009,0.0430779,84312.0,84311.0,0.58828739]
[1742501565909,0.0430779,84312.0,84311.0,0.59028739]
[1742501566607,0.04273839,84312.0,84311.0,0.59028739]
[1742501567201,0.0329,84312.0,84311.0,0.59028739]
[1742501568009,0.0329,84312.0,84311.0,0.3051854]
[1742501568600,0.04274145,84312.0,84311.0,0.3051854]
[1742501570013,0.16140545,84312.0,84311.0,0.3051854]
[1742501570513,0.19380545,84312.0,84311.0,0.3051854]
[1742501573815,0.19382544,84312.0,84311.0,0.3051854]
[1742501574017,0.07516144,84312.0,84311.0,0.3051854]
[1742501574312,0.19382544,84312.0,84311.0,0.004]
[1742501574719,0.183964,84312.0,84311.0,0.004]
[1742501575618,0.183964,84312.0,84311.0,0.002]
[1742501575818,0.183964,84312.0,84311.0,0.001]
[1742501576023,0.183964,84312.0,84311.0,0.1216654]
[1742501578018,0.183964,84312.0,84311.0,0.003]
[1742501580525,0.183964,84312.0,84311.0,0.002]
[1742501580718,0.183964,84312.0,84311.0,0.001]
[1742501594944,0.183964,84312.0,84303.0,0.05951588]
[1742501594945,0.1186752,84304.0,84303.0,0.00017798]
[1742501595240,0.5943952,84304.0,84303.0,0.00017798]
[1742501595538,0.6955952,84304.0,84303.0,0.00017798]
[1742501596632,0.6955952,84304.0,84303.0,0.00217798]
[1742501596833,0.1186809,84300.0,84299.0,0.0657]
[1742501597032,0.12843005,84300.0,84299.0,0.0657]
[1742501597232,0.19563002,84300.0,84299.0,0.0657]
[1742501597437,0.19563002,84300.0,84299.0,0.1843823]
[1742501597935,0.3007609,84300.0,84299.0,0.1843823]
[1742501598329,0.3007609,84300.0,84299.0,0.1913823]
[1742501601742,0.25471143,84300.0,84299.0,0.1913823]
[1742501606852,0.28621143,84300.0,84299.0,0.1913823]
[1742501613057,0.25471143,84300.0,84299.0,0.1913823]
[1742501613459,0.13983143,84300.0,84299.0,0.1913823]
[1742501613959,0.17443143,84300.0,84299.0,0.1913823]
[1742501623967,0.18424863,84300.0,84299.0,0.1913823]
[1742501624762,0.18424863,84300.0,84299.0,0.0727]
[1742501624965,0.1186921,84292.0,84291.0,0.00017798]
[1742501625275,0.1285093,84292.0,84291.0,0.00017798]
[1742501625461,0.2322093,84292.0,84291.0,0.00017798]
[1742501626167,0.24412545,84292.0,84291.0,0.12487148]
[1742501626565,0.24412545,84292.0,84291.0,0.00617798]
[1742501626765,0.24412545,84292.0,84291.0,0.12487148]
[1742501627568,0.2443504,84292.0,84291.0,0.12487148]
[1742501628068,0.2443504,84292.0,84291.0,0.12887148]
[1742501628257,0.2443504,84292.0,84291.0,0.01017798]
[1742501628462,0.2443504,84292.0,84291.0,0.12887148]
[1742501628669,0.24432303,84292.0,84291.0,0.12887148]
[1742501629361,0.24432303,84292.0,84291.0,0.16417148]
[1742501629870,0.24432303,84292.0,84291.0,0.04547798]
[1742501632073,0.24432303,84292.0,84291.0,0.08087798]
[1742501633269,0.25404964,84292.0,84291.0,0.08087798]
[1742501634563,0.24432303,84292.0,84291.0,0.08087798]
[1742501637770,0.23240688,84292.0,84291.0,0.19957148]
[1742501638165,0.16480688,84292.0,84291.0,0.19957148]
[1742501638476,0.16480688,84292.0,84291.0,0.23007148]
[1742501638662,0.16480688,84292.0,84291.0,0.23407148]
[1742501638663,0.19960688,84292.0,84291.0,0.23407148]
[1742501639664,0.20932925,84292.0,84291.0,0.23407148]
[1742501640376,0.19960688,84292.0,84291.0,0.23307148]
[1742501642976,0.19966492,84292.0,84291.0,0.23307148]
[1742501643781,0.20939136,84292.0,84291.0,0.23307148]
[1742501644880,0.20942216,84292.0,84291.0,0.23307148]
[1742501645270,0.19969572,84292.0,84291.0,0.23307148]
[1742501646870,0.1895921,84292.0,84291.0,0.23307148]
[1742501647071,0.19970009,84292.0,84291.0,0.23307148]
[1742501651284,0.19970009,84292.0,84291.0,0.23607148]
[1742501657376,0.19970009,84292.0,84291.0,0.20157148]
[1742501657987,0.1997418,84292.0,84291.0,0.20157148]
[1742501663579,0.19974737,84292.0,84291.0,0.20157148]
[1742501667488,0.19968896,84292.0,84291.0,0.20157148]
[1742501668086,0.08099686,84292.0,84291.0,0.20157148]
[1742501668285,0.0593379,84304.0,84299.0,0.1186823]
[1742501668595,0.1094,84304.0,84299.0,0.1186823]
[1742501668889,0.1094,84304.0,84299.0,0.2276823]
[1742501669593,0.2280756,84304.0,84299.0,0.3424823]
[1742501669988,0.1094,84304.0,84299.0,0.3424823]
[1742501670390,0.1094,84304.0,84299.0,0.3434823]
[1742501670892,0.1094,84304.0,84299.0,0.3454823]
[1742501671092,0.1186788,84302.0,84299.0,0.3454823]
[1742501671294,0.0711,84301.0,84299.0,0.3454823]
[1742501671799,0.1186788,84302.0,84299.0,0.3454823]
[1742501671800,0.07127798,84300.0,84299.0,0.35735686]
[1742501676900,0.07127798,84300.0,84299.0,0.35731686]
[1742501677402,0.07127798,84300.0,84299.0,0.32001686]
[1742501678191,0.18995888,84300.0,84299.0,0.32001686]
[1742501678395,0.07127798,84300.0,84299.0,0.32001686]
[1742501679405,0.18995888,84300.0,84299.0,0.32001686]
[1742501680410,0.20017248,84300.0,84299.0,0.32001686]
[1742501680605,0.20017248,84300.0,84299.0,0.3081423]
[1742501680811,0.20017248,84300.0,84299.0,0.1216823]
[1742501681803,0.20017248,84300.0,84299.0,0.1569823]
[1742501682506,0.20017248,84300.0,84299.0,0.1936823]
[1742501683514,0.20016966,84300.0,84299.0,0.1936823]
[1742501685410,0.08148876,84300.0,84299.0,0.1936823]
[1742501686617,0.20016966,84300.0,84299.0,0.1936823]
[1742501688814,0.18995888,84300.0,84299.0,0.1936823]
[1742501689517,0.20011469,84300.0,84299.0,0.1936823]
[1742501690115,0.18995888,84300.0,84299.0,0.1936823]
[1742501690420,0.20011376,84300.0,84299.0,0.1936823]
[1742501690721,0.18995888,84300.0,84299.0,0.1936823]
[1742501691017,0.20011376,84300.0,84299.0,0.1936823]
[1742501691720,0.18995888,84300.0,84299.0,0.1936823]
[1742501692419,0.20011817,84300.0,84299.0,0.1936823]
[1742501692624,0.20011817,84300.0,84299.0,0.1569823]
[1742501697123,0.20012496,84300.0,84299.0,0.1569823]
[1742501698720,0.08144406,84300.0,84299.0,0.1569823]
[1742501698926,0.20012496,84300.0,84299.0,0.1569823]
[1742501699125,0.20012496,84300.0,84299.0,0.1965823]
[1742501700328,0.08144406,84300.0,84299.0,0.1965823]
[1742501700509,0.20012496,84300.0,84299.0,0.1965823]
[1742501700711,0.08144406,84300.0,84299.0,0.1965823]
[1742501701928,0.20012496,84300.0,84299.0,0.1965823]
[1742501704122,0.08144406,84300.0,84299.0,0.1965823]
[1742501704335,0.20012496,84300.0,84299.0,0.1965823]
[1742501705219,0.08144406,84300.0,84299.0,0.1965823]
[1742501706336,0.20012496,84300.0,84299.0,0.1965823]
[1742501706941,0.08144406,84300.0,84299.0,0.1965823]
[1742501707643,0.21173643,84300.0,84299.0,0.1965823]
[1742501708032,0.20012496,84300.0,84299.0,0.1569823]
[1742501710334,0.19988241,84300.0,84299.0,0.1569823]
[1742501711248,0.19988241,84300.0,84299.0,0.1950823]
[1742501713042,0.03607798,84300.0,84299.0,0.1950823]
[1742501713247,0.03607798,84300.0,84299.0,0.2340823]
[1742501713750,0.07687798,84300.0,84299.0,0.2340823]
[1742501714848,0.19555888,84300.0,84299.0,0.2340823]
[1742501715057,0.19555888,84300.0,84299.0,0.1950823]
[1742501720838,0.19555888,84300.0,84299.0,0.1569823]
[1742501722242,0.19555888,84300.0,84299.0,0.1973823]
[1742501723041,0.19555888,84300.0,84299.0,0.1569823]
[1742501723243,0.19555888,84300.0,84285.0,0.34445269]
[1742501723244,0.1186907,84293.0,84285.0,0.34445269]
[1742501723451,0.2333707,84293.0,84285.0,0.28510199]
[1742501723638,0.1187006,84286.0,84285.0,0.40380149]
[1742501723839,0.4795006,84286.0,84285.0,0.52250269]
[1742501724252,0.5189006,84286.0,84285.0,0.52250269]
[1742501724551,0.5189006,84286.0,84285.0,0.40380149]
[1742501725250,0.5189006,84286.0,84285.0,0.48380149]
[1742501725745,0.5189006,84286.0,84285.0,0.48880149]
[1742501726546,0.5199006,84286.0,84285.0,0.49380149]
[1742501726747,0.5591006,84286.0,84285.0,0.49380149]
[1742501727842,0.5591006,84286.0,84285.0,0.2493995]
[1742501738859,0.5591006,84286.0,84285.0,0.05]
[1742501739161,0.5967006,84286.0,84285.0,0.05]
[1742501739463,0.5967006,84286.0,84285.0,0.168702]
[1742501745771,0.5967006,84286.0,84285.0,0.208602]
[1742501747171,0.5199006,84286.0,84285.0,0.208602]
[1742501747365,0.5199006,84286.0,84285.0,0.246602]
[1742501747580,0.5578006,84286.0,84285.0,0.246602]
[1742501748969,0.0783,84286.0,84285.0,0.246602]
[1742501749170,0.1970006,84286.0,84285.0,0.246602]
[1742501749762,0.1591006,84286.0,84285.0,0.246602]
[1742501749965,0.1197006,84286.0,84285.0,0.246602]
[1742501753463,0.3608,84294.0,84289.0,0.0593481]
[1742501753673,0.3608,84294.0,84293.0,0.1186907]
[1742501753871,0.4794904,84294.0,84293.0,0.1186907]
[1742501754072,0.4794904,84294.0,84293.0,0.2327907]
[1742501754273,0.5175904,84294.0,84293.0,0.2327907]
[1742501754961,0.5175904,84294.0,84293.0,0.2357907]
[1742501755370,0.5175904,84294.0,84293.0,0.24791935]
[1742501755572,0.5175904,84294.0,84293.0,0.25191935]
[1742501755777,0.5175904,84294.0,84293.0,0.2397907]
[1742501755982,0.5568904,84294.0,84293.0,0.2397907]
[1742501756974,0.5568904,84294.0,84293.0,0.2019907]
[1742501757178,0.5568904,84294.0,84293.0,0.1649907]
[1742501757682,0.5568904,84294.0,84293.0,0.2038907]
[1742501773785,0.0381,84294.0,84293.0,0.2038907]
[1742501773993,0.00017798,84300.0,84299.0,0.1186823]
[1742501774298,0.47544,84312.0,84304.0,0.0593375]
[1742501774299,0.0405,84305.0,84304.0,0.0593375]
[1742501775186,0.0405,84305.0,84304.0,0.0986375]
[1742501775992,0.1591738,84305.0,84304.0,0.0996375]
[1742501777198,0.1986738,84305.0,84304.0,0.0996375]
[1742501777899,0.08,84305.0,84304.0,0.0996375]
[1742501778104,0.3608,84306.0,84305.0,0.1186738]
[1742501778302,0.05156367,84310.0,84309.0,0.1186682]
[1742501778494,0.0399,84310.0,84309.0,0.1585682]
[1742501778794,0.3608,84312.0,84311.0,0.1186654]
[1742501778995,0.00017798,84313.0,84311.0,0.1186654]
[1742501779186,0.0791,84323.0,84322.0,0.1186499]
[1742501779590,0.0791,84323.0,84322.0,0.1585499]
[1742501780499,0.1977485,84323.0,84322.0,0.1585499]
[1742501780900,0.1977485,84323.0,84322.0,0.16754988]
[1742501781697,0.2017485,84323.0,84322.0,0.16754988]
[1742501781995,0.2057485,84323.0,84322.0,0.0399]
[1742501782203,0.1186527,84320.0,84319.0,0.1186535]
[1742501782389,0.1186527,84320.0,84319.0,0.1574535]
[1742501782588,0.2350527,84320.0,84319.0,0.1574535]
[1742501783700,0.2390527,84320.0,84319.0,0.1574535]
[1742501784295,0.2420527,84320.0,84319.0,0.1574535]
[1742501789118,0.1655527,84320.0,84319.0,0.1574535]
[1742501789314,0.007,84320.0,84319.0,0.1574535]
[1742501789522,0.007,84320.0,84319.0,0.2720535]
[1742501791131,0.3608,84328.0,84327.0,0.1186429]
[1742501791519,0.3608,84328.0,84327.0,0.1568429]
[1742501791715,0.3608,84328.0,84327.0,0.1953429]
[1742501792430,0.3708,84328.0,84327.0,0.2368429]
[1742501793431,0.4894414,84328.0,84327.0,0.2368429]
[1742501793632,0.4894414,84328.0,84327.0,0.24868565]
[1742501793927,0.5293414,84328.0,84327.0,0.24868565]
[1742501795430,0.5703414,84328.0,84327.0,0.24868565]
[1742501796529,0.1738746,84337.0,84327.0,0.24868565]
[1742501796530,0.3608,84354.0,84327.0,0.49084275]
[1742501796830,0.00140001,84360.0,84359.0,0.1185978]
[1742501797130,0.1185964,84360.0,84359.0,0.1778962]
[1742501797321,0.1185964,84360.0,84359.0,0.0592984]
[1742501798129,0.1955964,84360.0,84359.0,0.0592984]
[1742501798631,0.2005964,84360.0,84359.0,0.0592984]
[1742501799931,0.082,84360.0,84359.0,0.0592984]
[1742501800128,0.082,84360.0,84359.0,0.1377984]
[1742501800633,0.2005964,84360.0,84359.0,0.1377984]
[1742501814441,0.082,84360.0,84359.0,0.1377984]
[1742501814630,0.082,84360.0,84359.0,0.1753984]
[1742501814832,0.2005964,84360.0,84359.0,0.1753984]
[1742501815038,0.082,84360.0,84359.0,0.1753984]
[1742501815434,0.2005964,84360.0,84359.0,0.1753984]
[1742501815639,0.2005964,84360.0,84359.0,0.1377984]
[1742501816637,0.1955964,84360.0,84359.0,0.1377984]
[1742501817040,0.077,84360.0,84359.0,0.1377984]
[1742501820841,0.1955964,84360.0,84359.0,0.1377984]
[1742501821237,0.077,84360.0,84359.0,0.1377984]
[1742501843145,0.17795447,85523.0,84367.0,0.1185866]
[1742501843146,0.11448,84377.0,84367.0,0.1185866]
[1742501843356,0.1185788,84373.0,84367.0,0.4793866]
[1742501843548,0.1185788,84373.0,84367.0,0.5962866]
[1742501843749,0.0772,84372.0,84367.0,0.5962866]
[1742501845660,0.1860952,84368.0,84367.0,0.5576866]
[1742501846156,0.06751,84368.0,84367.0,0.5576866]
[1742501846646,0.18221,84368.0,84367.0,0.5576866]
[1742501849355,0.18221,84368.0,84367.0,0.5964866]
[1742501849554,0.3007952,84368.0,84367.0,0.3608]
[1742501849953,0.3007952,84368.0,84367.0,0.4793866]
[1742501850155,0.18221,84368.0,84367.0,0.4793866]
[1742501850651,0.18221,84368.0,84367.0,0.5578866]
[1742501851746,0.18221,84368.0,84367.0,0.56672605]
[1742501851949,0.3007952,84368.0,84367.0,0.56672605]
[1742501854256,0.14521,84368.0,84367.0,0.56672605]
[1742501854462,0.2637952,84368.0,84367.0,0.56672605]
[1742501857160,0.06751,84368.0,84367.0,0.56672605]
[1742501862465,0.06751,84368.0,84367.0,0.57072605]
[1742501863561,0.06751,84368.0,84367.0,0.57372605]
[1742501870165,0.06751,84368.0,84367.0,0.68816605]
[1742501881283,0.10511,84368.0,84367.0,0.68816605]
[1742501882782,0.10511,84368.0,84367.0,0.68916605]
[1742501883676,0.10511,84368.0,84367.0,0.69016605]
[1742501886976,0.14211,84368.0,84367.0,0.69016605]
[1742501888478,0.10511,84368.0,84367.0,0.68516605]
[1742501888679,0.10511,84368.0,84367.0,0.69016605]
[1742501889581,0.10511,84368.0,84367.0,0.70484145]
[1742501890280,0.10511,84368.0,84367.0,0.70084145]
[1742501890476,0.10511,84368.0,84367.0,0.70484145]
[1742501891277,0.06751,84368.0,84367.0,0.70484145]
[1742501891885,0.06751,84368.0,84367.0,0.70486705]
[1742501892084,0.10691,84368.0,84367.0,0.70486705]
[1742501892477,0.06751,84368.0,84367.0,0.70486705]
[1742501893081,0.06751,84368.0,84367.0,0.69986705]
[1742501893277,0.06751,84368.0,84367.0,0.70486705]
[1742501893872,0.06751,84368.0,84367.0,0.69016605]
[1742501894080,0.06751,84368.0,84367.0,0.70502854]
[1742501899978,0.06751,84368.0,84367.0,0.70530759]
[1742501900684,0.06751,84368.0,84367.0,0.7201456]
[1742501904387,0.02599739,84368.0,84367.0,0.7201456]
[1742501904691,0.077,84373.0,84372.0,0.1185796]
[1742501904895,0.077,84373.0,84372.0,0.49452114]
[1742501905186,0.077,84373.0,84372.0,0.57422114]
[1742501905589,0.077,84373.0,84372.0,0.58905915]
[1742501906186,0.077,84373.0,84372.0,0.59305915]
[1742501906387,0.077,84373.0,84372.0,0.59605915]
[1742501909990,0.077,84373.0,84372.0,0.59585328]
[1742501910796,0.077,84373.0,84372.0,0.6804796]
[1742501912685,0.077,84373.0,84372.0,0.69512981]
[1742501913792,0.077,84373.0,84372.0,0.6804796]
[1742501919808,0.077,84373.0,84372.0,0.6952343]
[1742501923907,0.077,84373.0,84372.0,0.70995101]
[1742501928720,0.0389,84380.0,84379.0,0.1185697]
[1742501928924,0.0389,84380.0,84379.0,0.6085244]
[1742501929123,0.0389,84380.0,84379.0,0.6887244]
[1742501929328,0.0389,84380.0,84379.0,0.70344111]
[1742501929828,0.0389,84380.0,84379.0,0.70043278]
[1742501930030,0.0389,84380.0,84379.0,0.71652031]
[1742501930624,0.0389,84380.0,84379.0,0.71852031]
[1742501932029,0.0389,84380.0,84379.0,0.71854079]
[1742501934322,0.1185627,84384.0,84379.0,0.71854079]
[1742501934323,0.0592728,84397.0,84395.0,0.1185459]
[1742501934527,0.0419,84391.0,84390.0,0.1185543]
[1742501934725,0.0419,84391.0,84390.0,0.13368151]
[1742501934925,0.0839,84391.0,84390.0,0.13368151]
[1742501935327,0.042,84391.0,84390.0,0.13368151]
[1742501935530,0.042,84391.0,84390.0,0.14849274]
[1742501937325,0.0392,84395.0,84394.0,0.1185487]
[1742501937527,0.0392,84395.0,84394.0,0.4793487]
[1742501938340,0.0392,84395.0,84394.0,0.49415993]
[1742501939831,0.0806,84395.0,84394.0,0.49415993]
[1742501940543,0.1991473,84395.0,84394.0,0.49415993]
[1742501940729,0.0806,84395.0,84394.0,0.49415993]
[1742501940931,0.1991473,84395.0,84394.0,0.49415993]
[1742501941128,0.0806,84395.0,84394.0,0.49415993]
[1742501941541,0.0806,84395.0,84394.0,0.53325993]
[1742501941941,0.0806,84395.0,84394.0,0.49415993]
[1742501943641,0.0806,84395.0,84394.0,0.50570745]
[1742501944341,0.0383,84399.0,84398.0,0.118543]
[1742501944535,0.0774,84399.0,84398.0,0.118543]
[1742501945044,0.0774,84399.0,84398.0,0.13335423]
[1742501945645,0.1185,84399.0,84398.0,0.13335423]
[1742501947846,0.1185,84399.0,84398.0,0.17215423]
[1742501950031,0.0802,84399.0,84398.0,0.17215423]
[1742501951738,0.1987416,84399.0,84398.0,0.17215423]
[1742501952649,0.1987416,84399.0,84398.0,0.21115423]
[1742501955444,0.0802,84399.0,84398.0,0.21115423]
[1742501956349,0.0391,84399.0,84398.0,0.25045423]
[1742501956538,0.1,84400.0,84399.0,0.1185416]
[1742501956744,0.1,84400.0,84399.0,0.1962416]
[1742501957344,0.0592621,84412.0,84399.0,0.1962416]
[1742501957345,0.059259,84416.0,84413.0,0.0592602]
[1742501957552,0.2168782,84416.0,84415.0,0.1185192]
[1742501957950,0.2168782,84416.0,84414.0,0.1969199]
[1742501957951,0.1185192,84415.0,84414.0,0.1969199]
[1742501958148,0.1566192,84415.0,84414.0,0.1969199]
[1742501958348,0.1566192,84415.0,84414.0,0.0784]
[1742501958754,0.1969192,84415.0,84414.0,0.21173183]
[1742501959251,0.1969192,84415.0,84414.0,0.09321123]
[1742501961158,0.0784,84415.0,84414.0,0.21173183]
[1742501961659,0.1969192,84415.0,84414.0,0.22049635]
[1742501963960,0.0784,84415.0,84414.0,0.22049635]
[1742501964550,0.46955362,84420.0,84419.0,0.1185136]
[1742501964551,0.00132,84420.0,84419.0,0.1185136]
[1742501964756,0.05369307,84429.0,84419.0,0.1391567]
[1742501964757,0.0403,84422.0,84419.0,0.1391567]
[1742501965059,0.1185091,84423.0,84422.0,0.1185093]
[1742501965254,0.1185091,84423.0,84422.0,0.2366093]
[1742501965450,0.2007091,84423.0,84422.0,0.2366093]
[1742501965650,0.2007091,84423.0,84422.0,0.25142053]
[1742501966850,0.2007091,84423.0,84422.0,0.21322053]
[1742501973868,0.2007091,84423.0,84422.0,0.09471123]
[1742501979367,0.0822,84423.0,84422.0,0.21322053]
[1742501979570,0.2007079,84423.0,84422.0,0.21322053]
[1742501980765,0.2007079,84423.0,84422.0,0.09471123]
[1742501982265,0.1588079,84423.0,84422.0,0.21322053]
[1742501982767,0.1588079,84423.0,84422.0,0.09471123]
[1742501983268,0.1185079,84423.0,84422.0,0.09471123]
[1742501984268,0.1185079,84423.0,84422.0,0.21322053]
[1742501984470,0.1185079,84423.0,84422.0,0.09471123]
[1742501986965,0.1185079,84423.0,84422.0,0.21322053]
[1742501993274,0.11428,84431.0,84422.0,0.21322053]
[1742501993275,0.0592498,84429.0,84425.0,0.0592521]
[1742501993474,0.0592491,84430.0,84429.0,0.1184981]
[1742501993475,0.1184983,84430.0,84429.0,0.1184981]
[1742501993673,0.1184983,84430.0,84429.0,0.13330933]